bitfinex/quotes_SOLUSD_20240612
["timestamp","ask_amount","ask_price","bid_price","bid_amount"]
[1718197574449,6.636,160.42,160.34,20.0]
[1718197574747,6.67491245,160.47,160.37,26.18]
[1718197574943,6.67491245,160.47,160.38,20.0]
[1718197577146,0.03891245,160.47,160.41,26.18]
[1718197577352,0.03891245,160.47,160.42,20.0]
[1718197577930,0.8096122,160.48,160.46,26.18]
[1718197578227,100.0,160.62,160.47,20.0]
[1718197578425,7.0420122,160.64,160.53,26.18]
[1718197578626,0.8096122,160.64,160.57,26.18]
[1718197578827,0.8096122,160.64,160.59,26.03]
[1718197579752,0.8096122,160.64,160.63,26.03]
[1718197580250,0.8096122,160.64,160.63,46.03]
[1718197581151,0.8096122,160.64,160.63,26.03]
[1718197581327,0.8096122,160.64,160.59,26.03]
[1718197582058,0.8096122,160.64,160.55,26.03]
[1718197582367,0.8096122,160.64,160.48,26.03]
[1718197582531,0.17,160.6,160.48,26.03]
[1718197582844,0.51,160.6,160.48,26.03]
[1718197583048,0.51,160.59,160.48,26.03]
[1718197583265,0.17,160.58,160.48,26.03]
[1718197583755,0.34,160.55,160.48,26.03]
[1718197583958,0.34,160.54,160.48,26.03]
[1718197584261,0.51,160.53,160.44,26.03]
[1718197584442,0.34,160.52,160.44,26.03]
[1718197584635,0.51,160.51,160.4,26.03]
[1718197584834,0.34,160.5,160.4,26.03]
[1718197585035,0.17,160.49,160.4,26.03]
[1718197585239,0.34,160.49,160.4,26.03]
[1718197585544,0.17,160.48,160.4,26.03]
[1718197586157,0.17,160.49,160.4,26.03]
[1718197586356,0.17,160.57,160.44,26.03]
[1718197586649,0.34,160.53,160.44,26.03]
[1718197587038,0.34,160.53,160.45,20.0]
[1718197587548,0.17,160.53,160.45,20.0]
[1718197587732,2.3038,160.61,160.45,20.0]
[1718197587935,106.5166,160.63,160.48,26.03]
[1718197587936,6.5166,160.63,160.48,26.03]
[1718197588136,6.5166,160.63,160.49,20.0]
[1718197588344,0.8096122,160.64,160.52,26.03]
[1718197588544,0.8096122,160.64,160.56,26.03]
[1718197588759,0.8096122,160.64,160.57,20.0]
[1718197590541,0.51,160.63,160.56,26.03]
[1718197590855,0.51,160.63,160.52,26.03]
[1718197590856,0.17,160.62,160.52,26.03]
[1718197591055,0.8096122,160.64,160.53,26.03]
[1718197591264,0.8096122,160.64,160.57,26.03]
[1718197591441,0.8096122,160.64,160.58,20.0]
[1718197592441,0.8096122,160.64,160.59,45.0]
[1718197592656,0.8096122,160.64,160.6,20.0]
[1718197593042,0.8096122,160.64,160.61,71.03]
[1718197593355,0.8096122,160.64,160.62,20.0]
[1718197593562,0.8096122,160.64,160.63,45.0]
[1718197593762,0.8096122,160.64,160.63,65.0]
[1718197593941,0.56362404,160.76,160.63,65.0]
[1718197594266,0.56362404,160.76,160.59,100.0]
[1718197594267,0.56362404,160.76,160.65,26.03]
[1718197594473,0.56362404,160.76,160.64,20.0]
[1718197594474,2.86512404,160.76,160.64,20.0]
[1718197594672,2.86512404,160.76,160.61,26.03]
[1718197594673,0.56362404,160.76,160.62,20.0]
[1718197594844,2.3022,160.72,160.57,26.03]
[1718197595044,104.6034,160.75,160.63,20.0]
[1718197595045,2.3017,160.75,160.63,20.0]
[1718197595264,0.56362404,160.76,160.58,20.0]
[1718197595797,0.17,160.75,160.58,20.0]
[1718197595942,0.17,160.73,160.62,26.03]
[1718197596137,0.34,160.73,160.63,20.0]
[1718197596768,0.34,160.74,160.62,26.03]
[1718197597050,0.34,160.73,160.56,26.03]
[1718197597260,0.34,160.72,160.61,26.03]
[1718197597571,0.17,160.7,160.62,20.0]
[1718197597749,0.34,160.7,160.6,26.03]
[1718197597952,0.17,160.69,160.61,20.0]
[1718197598167,0.17,160.68,160.56,26.03]
[1718197598371,0.51,160.68,160.56,26.03]
[1718197598563,0.17,160.67,160.56,26.03]
[1718197598874,0.51,160.67,160.56,26.03]
[1718197599062,0.34,160.67,160.56,26.03]
[1718197599748,0.34,160.67,160.57,20.0]
[1718197600146,0.56362404,160.76,160.57,20.0]
[1718197600355,0.17,160.73,160.57,20.0]
[1718197600874,2.982,160.73,160.57,20.0]
[1718197601045,0.34,160.72,160.57,20.0]
[1718197601248,0.34,160.71,160.57,20.0]
[1718197601581,0.17,160.69,160.57,20.0]
[1718197601875,0.34,160.69,160.57,20.0]
[1718197602068,0.17,160.68,160.57,20.0]
[1718197602248,0.17,160.68,160.57,22.490118]
[1718197602753,0.34,160.69,160.57,22.490118]
[1718197602954,0.56362404,160.76,160.63,26.03]
[1718197603158,0.56362404,160.76,160.64,20.0]
[1718197604459,0.56362404,160.76,160.67,26.03]
[1718197604661,0.56362404,160.76,160.68,20.0]
[1718197605252,0.56362404,160.76,160.65,20.0]
[1718197605755,0.34,160.75,160.65,20.0]
[1718197606768,0.56362404,160.76,160.65,20.0]
[1718197608457,0.56362404,160.76,160.72,26.03]
[1718197608755,0.56362404,160.76,160.73,20.0]
[1718197609765,0.8096122,160.79,160.73,20.0]
[1718197610365,0.8096122,160.79,160.76,26.03]
[1718197610556,0.8096122,160.79,160.77,20.0]
[1718197611064,107.34240803,160.95,160.77,20.0]
[1718197611258,102.299,160.94,160.81,26.03]
[1718197611462,2.2993,160.92,160.82,20.0]
[1718197611658,102.299,160.94,160.82,20.0]
[1718197611855,100.0,160.94,160.82,20.0]
[1718197612065,2.2991,160.93,160.82,20.0]
[1718197612271,104.598,160.94,160.82,20.0]
[1718197612452,2.2994,160.92,160.81,26.03]
[1718197612649,7.34250803,160.95,160.77,41.1498]
[1718197612954,109.64130803,160.95,160.81,26.03]
[1718197613168,109.64130803,160.95,160.82,20.0]
[1718197613483,2.2993,160.92,160.82,20.0]
[1718197613658,100.0,160.92,160.81,26.03]
[1718197613858,102.2993,160.92,160.81,26.03]
[1718197614068,100.0,160.94,160.81,26.03]
[1718197614254,102.299,160.94,160.81,26.03]
[1718197614456,0.34,160.93,160.81,26.03]
[1718197614755,0.17,160.91,160.72,50.903672]
[1718197614955,0.17,160.89,160.72,26.03]
[1718197615170,0.68,160.89,160.72,26.03]
[1718197615813,0.17,160.86,160.72,50.906895]
[1718197615957,0.17,160.81,160.72,50.906895]
[1718197616163,0.17,160.87,160.72,26.03]
[1718197616477,2.2992,160.93,160.72,28.517727]
[1718197616654,102.2989,160.94,160.72,2.487727]
[1718197616973,118.0815,160.97,160.79,26.03]
[1718197617182,118.0815,160.97,160.8,20.0]
[1718197617473,2.2987,160.96,160.8,20.0]
[1718197617689,115.783,160.97,160.8,20.0]
[1718197617871,118.0816,160.97,160.8,20.0]
[1718197618066,9.64130803,160.95,160.8,20.0]
[1718197618267,7.34250803,160.95,160.8,20.0]
[1718197618474,107.34250803,160.95,160.8,20.0]
[1718197618973,100.0,160.93,160.8,20.0]
[1718197619164,2.2993,160.92,160.79,26.03]
[1718197619373,102.2992,160.93,160.79,26.03]
[1718197619581,0.17,160.91,160.79,26.03]
[1718197619779,0.34,160.91,160.79,26.03]
[1718197619978,0.17,160.89,160.79,26.03]
[1718197620180,0.34,160.89,160.79,26.03]
[1718197620383,0.34,160.89,160.74,6.0586]
[1718197620674,0.17,160.85,160.72,2.487727]
[1718197620868,0.34,160.85,160.72,2.487727]
[1718197621067,0.17,160.84,160.72,2.487727]
[1718197621384,0.34,160.84,160.74,26.03]
[1718197621699,0.84840803,160.95,160.79,26.03]
[1718197621874,0.84840803,160.95,160.83,42.5984]
[1718197622196,0.84840803,160.95,160.83,48.7472]
[1718197622394,0.84840803,160.95,160.84,45.0]
[1718197622595,0.84840803,160.95,160.85,20.0]
[1718197622799,0.84840803,160.95,160.87,26.03]
[1718197622973,0.84840803,160.95,160.88,20.0]
[1718197625473,0.84840803,160.95,160.89,45.0]
[1718197625822,0.84840803,160.95,160.9,20.0]
[1718197626270,0.84840803,160.95,160.88,20.0]
[1718197627094,0.84840803,160.95,160.89,45.0]
[1718197627299,0.84840803,160.95,160.83,22.7172]
[1718197627507,0.84840803,160.95,160.86,26.03]
[1718197628910,0.84840803,160.95,160.87,45.0]
[1718197629115,0.84840803,160.95,160.88,20.0]
[1718197629517,0.84840803,160.95,160.87,20.0]
[1718197629518,0.17,160.94,160.87,20.0]
[1718197629822,0.34,160.94,160.86,26.03]
[1718197630019,0.84840803,160.95,160.86,26.03]
[1718197630833,0.84840803,160.95,160.83,22.7172]
[1718197630834,0.84840803,160.95,160.9,26.03]
[1718197630998,0.84840803,160.95,160.91,20.0]
[1718197631414,0.84840803,160.95,160.89,20.0]
[1718197631620,0.84840803,160.95,160.9,45.0]
[1718197631804,0.84840803,160.95,160.91,20.0]
[1718197632001,0.84840803,160.95,160.94,26.03]
[1718197632207,0.1,161.0,160.94,46.03]
[1718197632401,0.1,161.0,160.95,20.0]
[1718197633498,100.8096122,161.11,160.95,20.0]
[1718197633499,0.8096122,161.11,160.99,26.03]
[1718197633721,0.8096122,161.11,161.09,26.03]
[1718197634101,0.8096122,161.11,161.1,20.0]
[1718197634302,0.8096122,161.11,161.04,26.03]
[1718197634514,0.8096122,161.11,161.05,20.0]
[1718197635296,0.8096122,161.11,161.08,26.03]
[1718197635514,0.8096122,161.11,161.09,20.0]
[1718197635800,7.814084,161.16,161.09,20.0]
[1718197636425,7.814084,161.16,161.12,26.03]
[1718197636602,7.814084,161.16,161.13,20.0]
[1718197636921,7.814084,161.16,161.04,26.03]
[1718197637131,7.814084,161.16,161.05,65.0]
[1718197637315,7.814084,161.16,161.05,20.0]
[1718197637899,0.17,161.15,161.05,20.0]
[1718197638099,0.34,161.15,161.08,26.03]
[1718197638375,7.814084,161.16,161.09,20.0]
[1718197638536,0.17,161.14,161.05,20.0]
[1718197638831,0.17,161.14,161.04,26.03]
[1718197639206,0.17,161.14,161.0,26.03]
[1718197639405,0.17,161.11,160.97,16.4072]
[1718197639606,0.68,161.11,160.97,16.4072]
[1718197640803,100.68,161.11,160.96,26.03]
[1718197641219,0.17,161.09,160.96,26.03]
[1718197641423,102.9768,161.09,160.96,26.03]
[1718197641629,102.9768,161.09,160.93,15.2287]
[1718197641630,102.4671,161.07,160.93,15.2287]
[1718197641934,100.17,161.05,160.92,26.03]
[1718197642112,0.34,161.04,160.89,24.850981]
[1718197642313,0.34,161.03,160.89,24.850981]
[1718197642633,0.34,161.03,160.88,26.03]
[1718197642634,0.17,161.01,160.93,26.03]
[1718197642820,0.34,161.01,160.88,26.03]
[1718197643131,0.17,160.99,160.88,28.515412]
[1718197643348,0.34,160.99,160.88,28.515412]
[1718197643512,0.17,160.97,160.88,28.515412]
[1718197643917,0.34,160.97,160.88,28.515412]
[1718197644114,0.17,160.96,160.88,28.515412]
[1718197644315,0.34,160.96,160.88,28.515412]
[1718197644609,2.2968,161.09,160.88,28.515412]
[1718197644913,102.297,161.08,160.95,26.03]
[1718197645120,2.2971,161.07,160.95,26.03]
[1718197645302,100.0,161.08,160.96,20.0]
[1718197645508,22.3439,161.12,160.96,20.0]
[1718197645716,22.3439,161.12,160.99,26.03]
[1718197645922,22.3439,161.12,161.0,20.0]
[1718197646539,6.503,161.12,161.03,26.03]
[1718197646833,107.814084,161.16,161.04,20.0]
[1718197647618,2.296,161.15,161.04,20.0]
[1718197647807,110.109884,161.16,161.04,20.0]
[1718197648222,110.109884,161.16,161.03,26.03]
[1718197648223,107.814084,161.16,161.03,26.03]
[1718197648526,107.814084,161.16,161.0,26.03]
[1718197648703,2.2961,161.14,161.01,20.0]
[1718197648906,47.296,161.15,161.01,20.0]
[1718197649428,2.296,161.15,161.01,20.0]
[1718197650244,207.814084,161.16,161.01,20.0]
[1718197650548,0.34,161.15,161.01,20.0]
[1718197650774,7.814084,161.16,161.08,26.03]
[1718197650920,7.814084,161.16,161.09,20.0]
[1718197651116,7.814084,161.16,161.14,26.03]
[1718197651352,7.814084,161.16,161.15,20.0]
[1718197651728,7.814084,161.16,161.14,26.03]
[1718197651926,7.814084,161.16,161.12,26.03]
[1718197652617,7.814084,161.16,161.04,47.8598]
[1718197652924,7.814084,161.16,161.05,20.0]
[1718197653140,0.51,161.15,161.08,26.03]
[1718197653383,0.34,161.15,161.09,20.0]
[1718197653538,7.814084,161.16,161.09,20.0]
[1718197654556,7.814084,161.16,161.12,26.03]
[1718197654848,0.4339536,161.2,161.13,65.0]
[1718197655061,0.4339536,161.2,161.19,26.03]
[1718197655229,0.4339536,161.2,161.19,46.03]
[1718197655633,0.4339536,161.2,161.19,26.03]
[1718197655943,0.4339536,161.2,161.12,26.03]
[1718197656575,0.17,161.19,161.12,26.03]
[1718197656846,0.34,161.19,161.08,26.03]
[1718197657253,0.4339536,161.2,161.08,26.03]
[1718197657560,0.4339536,161.2,161.12,26.03]
[1718197658253,0.4339536,161.2,161.08,126.03]
[1718197658461,0.4339536,161.2,161.18,26.03]
[1718197660182,6.0442,161.32,161.19,26.03]
[1718197660455,6.0442,161.32,161.26,26.03]
[1718197661151,6.0442,161.32,161.24,26.03]
[1718197661731,6.0442,161.32,161.25,20.0]
[1718197662131,0.8710864,161.37,161.25,20.0]
[1718197662374,0.8710864,161.37,161.24,26.03]
[1718197662669,103.1639864,161.37,161.24,26.03]
[1718197663368,0.8710864,161.37,161.24,26.03]
[1718197663544,16.9693,161.36,161.24,26.03]
[1718197663745,0.34,161.35,161.24,26.03]
[1718197664061,0.34,161.35,161.2,26.03]
[1718197664062,6.333,161.33,161.2,26.03]
[1718197664245,0.17,161.32,161.21,20.0]
[1718197664446,2.2939,161.3,161.2,26.03]
[1718197664647,0.68,161.29,161.2,26.03]
[1718197664848,0.17,161.27,161.2,26.03]
[1718197665058,0.68,161.29,161.16,26.03]
[1718197665656,0.68,161.29,161.2,26.03]
[1718197665831,0.34,161.29,161.2,26.03]
[1718197666031,6.163,161.33,161.24,26.03]
[1718197666265,6.163,161.33,161.25,20.0]
[1718197666435,6.163,161.33,161.24,26.03]
[1718197667657,0.17,161.31,161.24,26.03]
[1718197667837,0.34,161.31,161.2,26.03]
[1718197668035,0.17,161.29,161.2,26.03]
[1718197668260,0.34,161.29,161.2,26.03]
[1718197668476,0.34,161.28,161.2,26.03]
[1718197668680,0.34,161.27,161.2,26.03]
[1718197668850,0.17,161.25,161.2,26.03]
[1718197669172,0.34,161.25,161.2,26.03]
[1718197669350,0.17,161.23,161.2,26.03]
[1718197669541,0.34,161.23,161.2,26.03]
[1718197669856,0.17,161.22,161.2,26.03]
[1718197670443,0.34,161.22,161.16,26.03]
[1718197670671,0.34,161.21,161.12,50.846558]
[1718197670845,0.17,161.2,161.12,26.03]
[1718197671266,0.17,161.2,161.13,2.482105]
[1718197672266,0.34,161.2,161.13,2.482105]
[1718197672483,0.17,161.19,161.13,2.482105]
[1718197672776,0.17,161.2,161.13,2.482105]
[1718197672949,6.4826,161.27,161.13,2.482105]
[1718197673155,8.7769,161.27,161.13,22.482105]
[1718197673965,2.2944,161.26,161.13,22.482105]
[1718197674269,0.17,161.25,161.13,22.482105]
[1718197674461,0.68,161.25,161.13,22.482105]
[1718197674768,2.9745,161.25,161.13,22.482105]
[1718197674940,0.68,161.25,161.13,2.482105]
[1718197675895,2.9746,161.25,161.13,2.482105]
[1718197676256,0.68,161.25,161.13,2.482105]
[1718197676566,2.465,161.22,161.13,2.482105]
[1718197676869,116.4826,161.27,161.13,2.482105]
[1718197676870,2.2931,161.36,161.21,26.03]
[1718197677070,110.8710864,161.37,161.25,26.03]
[1718197677563,2.2934,161.33,161.25,26.03]
[1718197677778,2.2935,161.32,161.25,26.03]
[1718197677947,110.8710864,161.37,161.2,26.03]
[1718197678155,2.2934,161.34,161.24,26.03]
[1718197678468,2.293,161.36,161.24,26.03]
[1718197678665,2.2931,161.35,161.24,26.03]
[1718197678851,3.1639864,161.37,161.24,26.03]
[1718197679053,2.293,161.36,161.24,26.03]
[1718197679357,2.2933,161.34,161.24,26.03]
[1718197679571,106.1688,161.36,161.24,26.03]
[1718197679747,2.2938,161.3,161.2,26.03]
[1718197679950,2.2942,161.27,161.2,26.03]
[1718197680169,100.0,161.3,161.2,26.03]
[1718197680476,100.8710864,161.37,161.2,26.03]
[1718197680776,2.4631,161.35,161.2,26.03]
[1718197680951,2.2936,161.32,161.2,26.03]
[1718197681149,0.17,161.31,161.24,26.03]
[1718197681383,2.2934,161.34,161.24,26.03]
[1718197681562,100.8710864,161.37,161.25,22.4564]
[1718197681563,0.8710864,161.37,161.25,22.4564]
[1718197681762,0.8710864,161.37,161.32,26.03]
[1718197686860,0.8710864,161.37,161.28,26.03]
[1718197687069,0.8710864,161.37,161.29,20.0]
[1718197687490,0.17,161.35,161.29,20.0]
[1718197687795,0.51,161.36,161.28,26.03]
[1718197688090,0.17,161.35,161.28,26.03]
[1718197688661,0.51,161.36,161.28,26.03]
[1718197688893,0.34,161.36,161.32,26.03]
[1718197689386,0.8710864,161.37,161.32,26.03]
[1718197690495,0.8710864,161.37,161.29,26.03]
[1718197690672,0.68,161.36,161.17,5.54889643]
[1718197690858,0.68,161.36,161.26,25.81]
[1718197691290,2.973,161.36,161.26,25.81]
[1718197691474,0.17,161.34,161.26,25.81]
[1718197692077,0.17,161.34,161.19,21.6672]
[1718197692078,5.2666,161.34,161.19,21.6672]
[1718197692285,2.2938,161.31,161.21,25.81]
[1718197692478,0.17,161.29,161.21,25.81]
[1718197692884,100.17,161.29,161.21,25.81]
[1718197693076,100.17,161.29,161.13,2.482105]
[1718197693077,2.2944,161.26,161.13,2.482105]
[1718197693271,100.17,161.27,161.14,25.81]
[1718197693470,0.17,161.25,161.14,25.81]
[1718197693876,100.0,161.24,161.14,25.81]
[1718197694079,0.68,161.23,161.13,2.482105]
[1718197694400,0.17,161.2,161.04,25.81]
[1718197694564,0.17,161.16,161.03,24.827949]
[1718197694780,0.17,161.14,161.05,25.81]
[1718197694991,0.17,161.07,161.03,50.707949]
[1718197695182,0.68,161.14,161.03,25.88]
[1718197695691,0.17,161.12,161.03,25.88]
[1718197695902,0.68,161.12,161.03,25.88]
[1718197696600,0.68,161.12,160.93,22.0969]
[1718197696601,0.17,161.07,160.93,22.0969]
[1718197696785,0.17,161.07,160.91,24.839617]
[1718197696989,0.17,161.05,160.94,25.88]
[1718197697216,0.51,161.05,160.94,25.88]
[1718197697385,0.17,161.04,160.94,25.88]
[1718197697591,0.17,161.03,160.94,25.88]
[1718197697787,0.51,161.03,160.94,25.88]
[1718197698100,0.17,161.02,160.94,25.88]
[1718197698286,0.51,161.02,160.94,25.88]
[1718197698691,0.17,161.01,160.94,25.88]
[1718197699091,0.17,161.01,160.98,25.88]
[1718197699297,100.0,161.09,160.98,25.88]
[1718197699497,6.1578,161.11,160.98,25.88]
[1718197699821,6.2671,161.18,161.02,25.88]
[1718197700018,6.2671,161.18,161.06,25.88]
[1718197700312,100.0,161.23,161.1,25.88]
[1718197700529,6.4478,161.24,161.1,25.88]
[1718197700530,111.0374,161.24,161.1,25.88]
[1718197700815,6.4478,161.24,161.14,25.88]
[1718197700987,6.4478,161.24,161.18,25.88]
[1718197701183,6.4478,161.24,161.14,25.88]
[1718197701488,100.381248,161.27,161.14,25.88]
[1718197701903,0.381248,161.27,161.14,25.88]
[1718197702089,0.381248,161.27,161.15,20.0]
[1718197702299,0.381248,161.27,161.22,25.88]
[1718197702606,0.381248,161.27,161.18,25.88]
[1718197702805,102.675548,161.27,161.18,25.88]
[1718197703002,0.381248,161.27,161.18,25.88]
[1718197703198,0.381248,161.27,161.22,25.88]
[1718197703618,0.381248,161.27,161.18,25.88]
[1718197704306,0.381248,161.27,161.19,20.0]
[1718197704512,0.381248,161.27,161.18,25.88]
[1718197704724,2.2944,161.26,161.18,25.88]
[1718197704927,102.675548,161.27,161.18,25.88]
[1718197705222,100.0,161.25,161.18,25.88]
[1718197705402,100.0,161.25,161.12,25.88]
[1718197705609,100.17,161.23,161.12,25.88]
[1718197705965,0.17,161.21,161.13,25.88]
[1718197706309,100.0,161.15,161.03,24.828572]
[1718197706505,0.34,161.14,161.05,25.88]
[1718197706705,0.51,161.14,161.05,25.88]
[1718197706910,0.34,161.14,161.09,25.88]
[1718197707103,0.17,161.12,161.09,25.88]
[1718197707307,0.17,161.12,160.96,25.88]
[1718197707308,100.34,161.12,161.04,25.88]
[1718197707608,106.4289,161.1,160.99,25.88]
[1718197707822,100.0,161.08,160.99,25.88]
[1718197708009,0.68,161.07,160.99,25.88]
[1718197708828,0.51,161.07,161.03,25.88]
[1718197709029,6.368,161.17,161.04,25.88]
[1718197709237,6.368,161.17,161.12,25.88]
[1718197709601,102.2949,161.23,161.12,25.88]
[1718197709813,6.0216,161.24,161.12,25.88]
[1718197710014,100.0,161.23,161.03,25.88]
[1718197710337,6.0216,161.24,161.14,25.88]
[1718197710509,100.0,161.22,161.04,65.0]
[1718197710714,106.0216,161.24,161.04,65.0]
[1718197710715,100.0,161.2,161.04,65.0]
[1718197710924,100.0,161.2,161.11,25.88]
[1718197711135,102.2953,161.2,161.11,25.88]
[1718197711436,100.0,161.2,161.11,25.88]
[1718197711637,0.51,161.19,161.11,25.88]
[1718197711838,0.17,161.18,161.11,25.88]
[1718197713036,2.2958,161.17,161.11,25.88]
[1718197713238,100.0,161.14,161.05,25.88]
[1718197713536,15.7474,161.16,161.03,25.88]
[1718197713537,0.17,161.11,161.03,25.88]
[1718197713932,0.68,161.11,161.03,25.88]
[1718197714443,0.68,161.11,160.96,25.88]
[1718197714627,100.0,161.09,161.01,25.88]
[1718197714825,0.51,161.08,161.01,25.88]
[1718197715020,0.17,161.07,161.01,25.88]
[1718197715747,0.17,161.07,160.96,25.88]
[1718197715946,0.51,161.08,160.96,25.88]
[1718197715947,6.4109,161.12,160.96,25.88]
[1718197716243,6.4109,161.12,160.88,25.88]
[1718197716244,102.2967,161.1,160.98,25.88]
[1718197716447,100.0,161.08,160.98,25.88]
[1718197717439,0.17,161.06,160.9,24.847472]
[1718197717632,0.17,161.06,160.96,25.88]
[1718197718535,100.17,161.06,160.88,25.88]
[1718197718735,0.17,161.04,160.94,25.88]
[1718197719153,0.17,161.04,160.88,25.88]
[1718197719154,100.0,161.1,160.98,25.88]
[1718197719652,100.0,161.13,161.02,25.88]
[1718197720031,102.2962,161.13,161.02,25.88]
[1718197720236,100.0,161.13,161.02,25.88]
[1718197720745,11.4771,161.19,161.03,20.0]
[1718197720746,2.2957,161.18,161.03,20.0]
[1718197720973,6.2122,161.19,161.07,25.88]
[1718197721143,6.2122,161.19,161.11,25.88]
[1718197721661,100.0,161.16,161.11,25.88]
[1718197721949,100.0,161.18,161.04,25.88]
[1718197722157,2.2961,161.15,161.04,25.88]
[1718197722343,100.0,161.18,161.04,25.88]
[1718197722545,6.2122,161.19,161.09,25.88]
[1718197723737,15.3703,161.23,161.14,25.88]
[1718197724148,6.0051,161.24,161.14,25.88]
[1718197724461,6.0051,161.24,161.18,25.88]
[1718197724763,0.381248,161.27,161.18,25.88]
[1718197725333,2.2948,161.23,161.14,25.88]
[1718197725550,2.2947,161.24,161.14,25.88]
[1718197725982,100.0,161.24,161.06,16.5069]
[1718197726265,4.5893,161.25,161.11,25.88]
[1718197726266,100.0,161.21,161.11,25.88]
[1718197726439,0.68,161.2,161.11,25.88]
[1718197726644,0.51,161.2,161.15,25.88]
[1718197726959,102.2946,161.25,161.15,25.88]
[1718197727163,100.0,161.23,161.15,25.88]
[1718197727367,100.0,161.25,161.15,25.88]
[1718197727545,2.2952,161.21,161.15,25.88]
[1718197727864,100.0,161.19,161.11,25.88]
[1718197728063,0.51,161.18,161.11,25.88]
[1718197728273,0.68,161.18,161.11,25.88]
[1718197728563,0.17,161.16,161.11,25.88]
[1718197728745,100.0,161.33,161.11,25.88]
[1718197728951,2.2941,161.28,161.2,25.88]
[1718197729148,100.0,161.31,161.2,25.88]
[1718197729471,2.2939,161.3,161.2,25.88]
[1718197729655,2.294,161.29,161.2,25.88]
[1718197729859,100.0,161.29,161.2,25.88]
[1718197730879,2.2947,161.24,161.16,25.88]
[1718197731161,100.0,161.26,161.12,25.88]
[1718197731338,2.295,161.22,161.12,25.88]
[1718197732041,0.17,161.2,161.12,25.88]
[1718197732252,0.34,161.2,161.12,25.88]
[1718197732454,0.17,161.19,161.12,25.88]
[1718197732661,0.34,161.19,161.12,25.88]
[1718197732978,0.17,161.18,161.12,25.88]
[1718197733269,0.34,161.18,161.12,25.88]
[1718197733875,0.34,161.17,161.12,25.88]
[1718197734075,0.17,161.16,161.12,28.362638]
[1718197734571,0.17,161.16,161.12,25.88]
[1718197734769,100.0,161.23,161.12,25.88]
[1718197734951,102.2949,161.23,161.12,28.362554]
[1718197735147,2.295,161.22,161.12,28.362554]
[1718197735348,131.112948,161.27,161.12,28.362554]
[1718197735349,16.524448,161.27,161.12,28.362554]
[1718197735567,0.381248,161.27,161.17,25.88]